bitfinex-derivatives/quotes_BTCF0:USTF0_20251119
["timestamp","ask_amount","ask_price","bid_price","bid_amount"]
[1763569500256,0.282498,89771.0,89770.0,0.00219803]
[1763569500551,0.1739829,89767.0,89766.0,0.3610785]
[1763569500754,0.219998,89771.0,89747.0,0.3608]
[1763569500755,0.1926565,89748.0,89747.0,0.3608]
[1763569500956,0.174014,89742.0,89741.0,0.00011001]
[1763569501148,0.3608,89743.0,89731.0,0.06366]
[1763569501352,0.0625,89741.0,89740.0,0.00219803]
[1763569501555,0.0625,89741.0,89726.0,0.36107863]
[1763569501556,0.1740326,89727.0,89726.0,0.36107863]
[1763569501757,0.2826726,89727.0,89726.0,0.36107863]
[1763569501958,0.2826726,89727.0,89726.0,0.06069863]
[1763569502155,0.2826726,89727.0,89726.0,0.03029863]
[1763569502355,0.17114,89727.0,89726.0,0.03029863]
[1763569502649,0.10864,89727.0,89726.0,0.07132863]
[1763569502852,0.2201726,89727.0,89726.0,0.06069863]
[1763569503361,0.22026591,89727.0,89726.0,0.05992]
[1763569503553,0.11162591,89727.0,89726.0,0.05992]
[1763569503750,0.1690025,89711.0,89710.0,0.0020994]
[1763569504051,0.5297913,89720.0,89710.0,0.00429743]
[1763569504359,0.5297913,89720.0,89719.0,0.02952]
[1763569504561,0.3608,89720.0,89710.0,0.00429743]
[1763569504853,0.1115473,89716.0,89710.0,0.00429743]
[1763569505156,0.001,89711.0,89710.0,0.03381743]
[1763569505352,0.05845,89711.0,89710.0,0.00429743]
[1763569505761,0.05845,89711.0,89710.0,0.0020994]
[1763569506056,0.1387274,89691.0,89690.0,0.36960638]
[1763569506259,0.10876034,89691.0,89690.0,0.43172441]
[1763569506945,8.034e-05,89691.0,89690.0,0.43172441]
[1763569507152,0.10876034,89691.0,89690.0,0.43172441]
[1763569507654,0.10876034,89691.0,89690.0,0.37180441]
[1763569507655,0.16621034,89691.0,89690.0,0.37180441]
[1763569507854,0.16721034,89691.0,89690.0,0.01100441]
[1763569508660,0.05853034,89691.0,89690.0,0.01100441]
[1763569508855,0.16721034,89691.0,89690.0,0.01100441]
[1763569509565,0.1115874,89683.0,89669.0,0.3608]
[1763569509857,8.034e-05,89691.0,89679.0,0.3608]
[1763569510055,0.00108034,89691.0,89680.0,0.00219803]
[1763569510255,0.02715,89681.0,89680.0,0.00219803]
[1763569510458,0.02715,89690.0,89689.0,0.1714994]
[1763569510659,0.00108034,89691.0,89690.0,0.06211803]
[1763569510954,0.10876034,89691.0,89690.0,0.42291803]
[1763569511350,0.3608,89720.0,89690.0,0.42291803]
[1763569511550,0.3608,89730.0,89720.0,0.1115412]
[1763569511754,0.13587,89729.0,89728.0,0.02952]
[1763569512060,0.02715,89710.0,89709.0,0.3608]
[1763569512359,0.1115595,89706.0,89693.0,0.20287312]
[1763569512562,0.02715,89701.0,89700.0,0.00219803]
[1763569512759,0.05745,89701.0,89700.0,0.00219803]
[1763569512952,0.1115612,89704.0,89700.0,0.00219803]
[1763569513155,8.927e-05,89710.0,89709.0,0.05992]
[1763569513363,8.927e-05,89710.0,89709.0,0.42072]
[1763569513757,0.10876,89725.0,89724.0,0.05992]
[1763569514265,0.13491,89725.0,89724.0,0.05992]
[1763569514560,0.5810951,89725.0,89724.0,0.05992]
[1763569514761,0.46970295,89725.0,89720.0,0.03171803]
[1763569514964,0.46970295,89725.0,89724.0,0.05992]
[1763569514965,0.10890295,89725.0,89724.0,0.05992]
[1763569515661,0.00014295,89725.0,89724.0,0.05992]
[1763569516551,0.00014295,89725.0,89720.0,0.00219803]
[1763569516552,0.05745,89721.0,89720.0,0.00219803]
[1763569516860,0.1115364,89724.0,89723.0,0.02952]
[1763569517166,0.00014295,89725.0,89720.0,0.00219803]
[1763569517167,0.11367905,89725.0,89720.0,0.00219803]
[1763569517370,0.1115396,89722.0,89721.0,0.05992]
[1763569517563,0.1105396,89722.0,89721.0,0.05992]
[1763569517759,0.10872,89724.0,89723.0,0.02952]
[1763569518158,0.00014295,89725.0,89724.0,0.1714564]
[1763569518472,0.00016717,89731.0,89730.0,0.1714489]
[1763569518664,0.00016717,89731.0,89730.0,0.17364693]
[1763569519369,0.05761717,89731.0,89730.0,0.03171803]
[1763569519662,0.05761717,89731.0,89714.0,0.06008717]
[1763569519663,0.1115476,89715.0,89714.0,0.06008717]
[1763569520153,0.1115434,89719.0,89714.0,0.06008717]
[1763569520353,0.1689976,89715.0,89714.0,0.00016717]
[1763569520554,0.1882776,89715.0,89714.0,0.00016717]
[1763569520858,0.1882776,89715.0,89695.0,0.01280967]
[1763569520859,0.05745,89709.0,89691.0,0.3608]
[1763569521056,0.05745,89701.0,89700.0,0.00219803]
[1763569521258,0.05745,89700.0,89699.0,0.3608]
[1763569521459,0.1882962,89700.0,89699.0,0.3608]
[1763569521658,0.46952,89708.0,89700.0,0.00219803]
[1763569521659,0.02715,89701.0,89700.0,0.00219803]
[1763569521859,0.11172287,89709.0,89701.0,0.111565]
[1763569522060,0.10876,89708.0,89707.0,0.05992]
[1763569522362,0.00016717,89709.0,89708.0,0.02952]
[1763569522568,0.10896717,89709.0,89708.0,0.02952]
[1763569522770,0.1115666,89700.0,89699.0,0.02952]
[1763569523063,0.1115586,89707.0,89700.0,0.11376393]
[1763569523253,0.002,89708.0,89700.0,0.11376393]
[1763569523457,0.05745,89701.0,89700.0,0.00219803]
[1763569524066,0.02715,89701.0,89700.0,0.00219803]
[1763569524369,0.11372317,89709.0,89708.0,0.05992]
[1763569524370,0.00216717,89709.0,89708.0,0.05992]
[1763569524571,0.11092717,89709.0,89708.0,0.42072]
[1763569525264,0.10892717,89709.0,89708.0,0.42072]
[1763569525669,0.00016717,89709.0,89708.0,0.05158]
[1763569525965,0.00216717,89709.0,89708.0,0.05158]
[1763569526477,0.00016717,89709.0,89708.0,0.05158]
[1763569526660,0.1115347,89726.0,89725.0,0.02532]
[1763569526960,0.2202947,89726.0,89725.0,0.02532]
[1763569527159,0.2465747,89726.0,89725.0,0.02532]
[1763569527357,0.1115401,89721.0,89720.0,0.02751803]
[1763569527756,0.1115401,89721.0,89720.0,0.05377803]
[1763569527973,0.1630401,89721.0,89720.0,0.00219803]
[1763569528163,0.0515,89713.0,89712.0,0.00016717]
[1763569529472,0.10976,89713.0,89712.0,0.05174717]
[1763569529666,0.10876,89713.0,89712.0,0.05174717]
[1763569529857,0.16126,89713.0,89712.0,0.02548717]
[1763569530058,0.16126,89713.0,89712.0,0.00016717]
[1763569530770,0.0515,89699.0,89698.0,0.3608]
[1763569531065,0.1378462,89700.0,89699.0,0.02532]
[1763569531272,0.02628,89700.0,89699.0,0.05158]
[1763569531567,0.135,89700.0,89699.0,0.05158]
[1763569531757,0.16022,89700.0,89698.0,0.3608]
[1763569531964,0.1661875,89699.0,89698.0,0.3608]
[1763569532164,0.02725,89699.0,89698.0,0.38685]
[1763569532362,0.05462,89699.0,89698.0,0.3608]
[1763569532572,0.10872,89699.0,89698.0,0.41291]
[1763569532775,0.00016717,89708.0,89707.0,0.05211]
[1763569533262,0.10888717,89708.0,89707.0,0.05211]
[1763569533670,0.10888717,89708.0,89707.0,0.1636675]
[1763569533870,0.13513717,89708.0,89707.0,0.05211]
[1763569534772,0.13713717,89708.0,89707.0,0.05211]
[1763569535265,0.00016717,89708.0,89707.0,0.5244675]
[1763569535466,0.10984717,89708.0,89707.0,0.5244675]
[1763569536262,0.00116717,89708.0,89707.0,0.5244675]
[1763569536466,0.10884717,89708.0,89707.0,0.5244675]
[1763569536671,0.00016717,89708.0,89707.0,0.5244675]
[1763569537058,0.00027863,89726.0,89707.0,0.5244675]
[1763569537059,0.1115437,89719.0,89718.0,0.05211]
[1763569537368,0.2202237,89719.0,89718.0,0.05211]
[1763569537966,0.2464737,89719.0,89718.0,0.05211]
[1763569538773,0.2474737,89719.0,89718.0,0.05211]
[1763569539860,0.001,89719.0,89718.0,0.1636538]
[1763569540067,0.10964,89719.0,89718.0,0.1636538]
[1763569540378,0.00027863,89726.0,89725.0,0.1636451]
[1763569540584,0.00027863,89726.0,89725.0,0.5244451]
[1763569540877,0.3608,89751.0,89725.0,0.5244451]
[1763569540878,0.05362,89754.0,89753.0,0.1375504]
[1763569541269,0.3608,89761.0,89760.0,0.05211]
[1763569541466,0.3608,89761.0,89760.0,0.05430803]
[1763569541668,0.5809704,89761.0,89760.0,0.05430803]
[1763569542071,0.5809704,89761.0,89760.0,0.16579973]
[1763569542267,0.1651204,89753.0,89752.0,0.00016717]
[1763569542679,0.002,89754.0,89753.0,0.1636104]
[1763569542874,0.11068,89754.0,89753.0,0.5244104]
[1763569543076,0.11068,89754.0,89753.0,0.41291]
[1763569543778,0.10868,89754.0,89753.0,0.41291]
[1763569544874,0.3608,89760.0,89759.0,0.05211]
[1763569545065,0.46948,89760.0,89759.0,0.05211]
[1763569545266,0.46948,89760.0,89759.0,0.1636029]
[1763569545267,0.3608,89760.0,89759.0,0.1636029]
[1763569545579,0.0002785,89766.0,89765.0,0.1635955]
[1763569545779,0.05362,89762.0,89761.0,0.3608]
[1763569545978,0.1089185,89766.0,89761.0,0.3608]
[1763569546179,0.220403,89766.0,89765.0,0.02605]
[1763569546380,0.1651092,89762.0,89761.0,0.3608]
[1763569546580,0.1651092,89762.0,89760.0,0.00219803]
[1763569546581,0.05362,89761.0,89760.0,0.00219803]
[1763569547266,0.1114932,89759.0,89754.0,0.05211]
[1763569547466,0.1114967,89756.0,89755.0,0.02605]
[1763569547672,0.1114966,89756.0,89755.0,0.02605]
[1763569547874,0.2201366,89756.0,89755.0,0.05211]
[1763569548280,0.2463866,89756.0,89755.0,0.05211]
[1763569548478,0.2463866,89756.0,89752.0,0.00016717]
[1763569548479,0.1651204,89753.0,89752.0,0.00016717]
[1763569550280,0.05362,89733.0,89732.0,0.3608]
[1763569550480,0.16222,89733.0,89732.0,0.3608]
[1763569550779,0.16222,89733.0,89732.0,0.41291]
[1763569551279,0.1086,89733.0,89732.0,0.41291]
[1763569551476,0.1086,89733.0,89732.0,0.4983765]
[1763569551677,0.1086,89733.0,89732.0,0.38685]
[1763569551978,0.1086,89733.0,89732.0,0.5244365]
[1763569553078,0.00016717,89741.0,89740.0,0.1375665]
[1763569553281,0.10876717,89741.0,89740.0,0.16582453]
[1763569553470,0.16238717,89741.0,89740.0,0.00219803]
[1763569553878,0.00016717,89741.0,89740.0,0.05430803]
[1763569554270,0.02641717,89741.0,89740.0,0.05430803]
[1763569554478,0.05378717,89741.0,89740.0,0.05430803]
[1763569554783,0.00116717,89741.0,89740.0,0.05430803]
[1763569554978,0.00116717,89741.0,89740.0,0.16582453]
[1763569555371,0.00116717,89741.0,89740.0,0.52662453]
[1763569556276,0.16630247,89741.0,89740.0,0.41510803]
[1763569556470,0.16630247,89741.0,89740.0,0.38904803]
[1763569556885,0.16630247,89741.0,89740.0,0.05430803]
[1763569557280,0.16630247,89741.0,89740.0,0.00219803]
[1763569558384,0.16530247,89741.0,89740.0,0.00219803]
[1763569558585,0.16630247,89741.0,89740.0,0.00219803]
[1763569559085,0.00116717,89741.0,89740.0,0.05430803]
[1763569559285,0.10976717,89741.0,89740.0,0.05430803]
[1763569559974,0.13601717,89741.0,89740.0,0.05430803]
[1763569560172,0.16338717,89741.0,89740.0,0.00219803]
[1763569560372,0.05362,89730.0,89729.0,0.3608]
[1763569560575,0.1651489,89730.0,89729.0,0.38685]
[1763569560777,0.1651489,89730.0,89729.0,0.3608]
[1763569560985,0.1651552,89725.0,89724.0,0.02621717]
[1763569561179,0.1651552,89725.0,89724.0,7e-08]
[1763569561382,0.2737552,89725.0,89724.0,7e-08]
[1763569561879,0.2737552,89725.0,89711.0,0.3608]
[1763569561880,0.1618876,89715.0,89711.0,0.3608]
[1763569562484,0.161905,89701.0,89695.0,0.06005356]
[1763569562683,0.05034,89696.0,89695.0,0.02288]
[1763569562880,0.05034,89693.0,89692.0,0.3608]
[1763569563080,0.05034,89693.0,89692.0,0.40952]
[1763569563688,0.05044183,89693.0,89692.0,0.40952]
[1763569563877,0.00010183,89693.0,89692.0,0.40952]
[1763569564078,0.10870183,89693.0,89692.0,0.40952]
[1763569565085,0.15904183,89693.0,89692.0,0.40952]
[1763569565288,0.15904183,89693.0,89692.0,0.3608]
[1763569565591,0.15904183,89693.0,89692.0,0.38368]
[1763569565975,0.15904183,89693.0,89692.0,0.3608]
[1763569566177,0.15904183,89693.0,89692.0,0.5210962]
[1763569566385,0.15904183,89693.0,89692.0,0.3608]
[1763569566580,0.15904183,89693.0,89692.0,0.38368]
[1763569566782,0.00010183,89693.0,89692.0,0.40952]
[1763569566978,0.00016717,89704.0,89703.0,0.04872]
[1763569567195,0.10876717,89704.0,89703.0,0.04872]
[1763569567592,0.10876717,89704.0,89703.0,0.1602825]
[1763569567992,0.10882322,89704.0,89703.0,0.1602825]
[1763569568389,0.10882322,89704.0,89703.0,0.04872]
[1763569568594,0.10882322,89704.0,89701.0,0.3608]
[1763569568595,0.05034,89702.0,89701.0,0.3608]
[1763569568794,0.05034,89702.0,89701.0,0.38368]
[1763569569185,0.02441,89702.0,89701.0,0.40952]
[1763569569394,0.161905,89701.0,89700.0,0.00219803]
[1763569569997,0.161905,89701.0,89700.0,0.05091803]
[1763569570193,0.161905,89701.0,89700.0,0.02507803]
[1763569570395,0.270545,89701.0,89700.0,0.00219803]
[1763569570581,0.161905,89701.0,89700.0,0.00219803]
[1763569570783,0.05034,89693.0,89692.0,0.3608]
[1763569571292,0.1740012,89688.0,89687.0,0.00016717]
[1763569571895,0.1740012,89688.0,89680.0,0.001]
[1763569571896,0.1619299,89681.0,89680.0,0.001]
[1763569572195,0.52278595,89681.0,89680.0,0.001]
[1763569573081,0.1360211,89664.0,89663.0,0.3608]
[1763569573286,0.06644,89661.0,89660.0,0.00219803]
[1763569573687,0.06644,89661.0,89660.0,0.05091803]
[1763569573688,0.10864,89661.0,89660.0,0.05091803]
[1763569573899,0.17508,89661.0,89660.0,0.00219803]
[1763569574991,0.05034,89661.0,89660.0,0.05091803]
[1763569575194,0.02441,89670.0,89669.0,0.02584]
[1763569575496,0.00016728,89672.0,89671.0,0.04872]
[1763569575792,0.05050728,89672.0,89671.0,0.02288]
[1763569575996,0.05034,89671.0,89670.0,0.00219803]
[1763569576497,0.00016728,89672.0,89671.0,0.1603223]
[1763569576890,0.1115758,89693.0,89680.0,0.04872]
[1763569577094,0.13310605,89681.0,89680.0,0.05091803]
[1763569577396,0.27062595,89681.0,89680.0,0.00219803]
[1763569577988,0.1115999,89673.0,89672.0,0.00016728]
[1763569578196,0.1619399,89673.0,89672.0,0.00016728]
[1763569578591,0.05034,89673.0,89672.0,0.02304728]
[1763569578789,0.15898,89673.0,89672.0,0.00016728]
[1763569578991,0.05034,89673.0,89672.0,0.00016728]
[1763569579192,0.15898,89673.0,89672.0,0.00016728]
[1763569579600,0.51978,89673.0,89672.0,0.00016728]
[1763569580693,0.1780548,89661.0,89660.0,0.3608]
[1763569580898,0.1780548,89661.0,89660.0,0.00219803]
[1763569581391,0.06644,89661.0,89660.0,0.00219803]
[1763569581598,0.3608,89675.0,89664.0,0.1116105]
[1763569581799,0.05050728,89669.0,89660.0,0.36299803]
[1763569581995,0.00016728,89669.0,89660.0,0.36299803]
[1763569582194,0.00016728,89669.0,89668.0,0.04872]
[1763569582403,0.00016728,89669.0,89660.0,0.36299803]
[1763569582404,0.05034,89661.0,89660.0,0.40952]
[1763569582599,0.111607,89668.0,89661.0,0.1116148]
[1763569582912,0.1116111,89664.0,89663.0,0.04872]
[1763569583092,0.1116067,89668.0,89663.0,0.1603322]
[1763569583298,0.10868,89667.0,89663.0,0.1603322]
[1763569583495,0.1780548,89661.0,89660.0,0.36299803]
[1763569583998,0.1116098,89666.0,89665.0,0.02584]
[1763569584303,0.1116098,89666.0,89665.0,0.04872]
[1763569584304,0.2202898,89666.0,89665.0,0.04872]
[1763569584507,0.2446998,89666.0,89665.0,0.04872]
[1763569584708,0.1116098,89666.0,89665.0,0.04872]
[1763569584912,0.3608,89694.0,89668.0,0.04408]
[1763569585110,0.10868,89692.0,89691.0,0.04408]
[1763569585307,0.1115744,89694.0,89693.0,0.02169]
[1763569585508,0.2202944,89694.0,89693.0,0.04408]
[1763569585703,0.1115775,89691.0,89690.0,0.00219803]
[1763569585904,0.1560375,89691.0,89690.0,0.00219803]
[1763569586304,0.2647175,89691.0,89690.0,0.00219803]
[1763569586912,0.1560474,89683.0,89682.0,0.00016728]
[1763569587112,0.10876,89683.0,89682.0,0.04424728]
[1763569587312,0.15322,89683.0,89682.0,0.00016728]
[1763569588212,0.04446,89666.0,89665.0,0.3608]
[1763569588512,0.1560686,89666.0,89665.0,0.3608]
[1763569588714,0.1560748,89661.0,89660.0,0.00219803]
[1763569588908,0.2647948,89661.0,89660.0,0.00219803]
[1763569589103,0.1116061,89668.0,89660.0,0.15789403]
[1763569589303,0.10872,89667.0,89665.0,0.3608]
[1763569589513,0.00016728,89673.0,89666.0,0.1556886]
[1763569589710,0.10872,89672.0,89666.0,0.1556886]
[1763569589905,0.1116073,89667.0,89666.0,0.04408]
[1763569590110,0.02225,89666.0,89665.0,0.3608]
[1763569590310,0.1116039,89670.0,89665.0,0.40488]
[1763569590511,0.1116039,89670.0,89669.0,0.02169]
[1763569590707,0.00016728,89673.0,89672.0,0.04408]
[1763569591113,0.3608,89697.0,89687.0,0.1115817]
[1763569591415,0.02225,89691.0,89690.0,0.00219803]
[1763569591813,0.1115761,89693.0,89690.0,0.00219803]
[1763569592010,0.10872,89696.0,89690.0,0.00219803]
[1763569592219,0.1115761,89693.0,89690.0,0.00219803]
[1763569592416,0.023,89691.0,89690.0,0.00219803]
[1763569592717,0.023,89691.0,89677.0,0.3608]
[1763569592718,0.1559736,89678.0,89677.0,0.3608]
[1763569593016,0.1115788,89690.0,89680.0,0.00219803]
[1763569593209,0.3608,89697.0,89680.0,0.00219803]
[1763569593407,0.001,89693.0,89684.0,0.1115854]
[1763569593612,0.04438,89691.0,89690.0,0.00219803]
[1763569593916,0.00146535,89690.0,89680.0,0.3608]
[1763569594122,0.10876,89689.0,89680.0,0.36153267]
[1763569594718,0.00146535,89690.0,89680.0,0.36153267]
[1763569594719,0.1115886,89682.0,89681.0,0.02138]
[1763569594918,0.023,89681.0,89680.0,0.00073267]
[1763569595120,0.04438,89681.0,89680.0,0.00073267]
[1763569595324,0.023,89681.0,89680.0,0.36153267]
[1763569595621,0.2203423,89688.0,89681.0,0.1115899]
[1763569595918,0.001,89682.0,89681.0,0.1558099]
[1763569596110,0.001,89682.0,89681.0,0.04422]
[1763569596311,0.1115872,89684.0,89681.0,0.04422]
[1763569596511,0.001,89681.0,89680.0,0.36153267]
[1763569596711,0.024,89681.0,89680.0,0.36153267]
[1763569597312,0.04538,89681.0,89680.0,0.36153267]
[1763569597710,0.04438,89681.0,89680.0,0.36153267]
[1763569598115,0.04438,89681.0,89680.0,0.00073267]
[1763569598519,0.04538,89681.0,89680.0,0.00073267]
[1763569598717,0.001,89681.0,89680.0,0.04495267]
[1763569598911,0.15414,89681.0,89680.0,0.00073267]
[1763569599621,0.001,89681.0,89680.0,0.02211267]
[1763569599812,0.10976,89681.0,89680.0,0.02211267]
[1763569600013,0.2443499,89681.0,89680.0,0.00073267]
[1763569600412,0.1569699,89681.0,89680.0,0.00073267]
[1763569600617,0.2656899,89681.0,89680.0,0.00073267]
[1763569600922,0.1559823,89671.0,89670.0,0.3608]
[1763569601108,0.04438,89671.0,89670.0,0.36153267]
[1763569601314,0.1559823,89671.0,89670.0,0.36153267]
[1763569601722,0.1559823,89671.0,89670.0,0.00073267]
[1763569603021,0.04438,89662.0,89661.0,0.42079566]
[1763569603221,0.04438,89662.0,89661.0,0.3608]
[1763569604220,0.01266,89670.0,89660.0,0.00073267]
[1763569604221,0.1116148,89661.0,89660.0,0.00073267]
[1763569604418,0.1559948,89661.0,89660.0,0.00073267]
[1763569605619,0.04657803,89660.0,89659.0,0.00013416]
[1763569607024,0.02519803,89660.0,89659.0,0.04435416]
[1763569607225,0.15529803,89660.0,89659.0,0.04435416]
[1763569607429,0.15529803,89660.0,89659.0,0.00013416]
[1763569607623,0.15525803,89660.0,89659.0,0.00013416]
[1763569608524,0.15525803,89660.0,89659.0,0.40515416]
[1763569608525,0.00219803,89660.0,89659.0,0.40515416]
[1763569609025,0.3608,89672.0,89671.0,0.04422]
[1763569609533,0.46952,89672.0,89671.0,0.04422]
[1763569609915,0.5811211,89672.0,89671.0,0.04422]
[1763569610131,0.46952,89672.0,89671.0,0.04422]
[1763569610429,0.3608,89689.0,89678.0,0.1558136]
[1763569610624,0.10872,89681.0,89678.0,0.5166136]
[1763569610820,0.11379033,89680.0,89678.0,0.40502]
[1763569611427,0.11175968,89679.0,89678.0,0.40502]
[1763569611622,0.04438,89677.0,89676.0,0.05999566]
[1763569611825,0.00016728,89679.0,89672.0,0.05999566]
[1763569612024,0.1559798,89673.0,89672.0,0.05999566]
[1763569612223,0.023,89671.0,89670.0,0.00073267]
[1763569612424,0.04438,89671.0,89670.0,0.00073267]
[1763569612834,0.1559886,89666.0,89665.0,0.05999566]
[1763569613019,0.04438,89666.0,89665.0,0.44217566]
[1763569613225,0.00219803,89670.0,89669.0,0.04422]
[1763569613423,0.11087803,89670.0,89669.0,0.04422]
[1763569613621,0.023,89667.0,89666.0,0.08146845]
[1763569613831,0.023,89667.0,89666.0,0.02138]
[1763569614335,0.11087803,89670.0,89665.0,0.06008845]
[1763569614336,0.1559886,89666.0,89665.0,0.06008845]
[1763569614628,0.04438,89661.0,89660.0,0.00073267]
[1763569618228,0.00219803,89660.0,89650.0,0.00157392]
[1763569618430,0.04657803,89660.0,89650.0,0.00230659]
[1763569618732,0.04657803,89660.0,89659.0,0.04435416]
[1763569618733,0.11087803,89660.0,89659.0,0.04435416]
[1763569618939,0.00219803,89660.0,89659.0,0.04435416]
[1763569619240,0.11087803,89660.0,89659.0,0.04435416]
[1763569619429,0.15525803,89660.0,89659.0,0.00013416]
[1763569620535,0.00219803,89660.0,89659.0,0.04435416]
[1763569620727,0.3608,89666.0,89665.0,0.04422]
[1763569620925,0.46948,89666.0,89665.0,0.04422]
[1763569621129,0.05704,89661.0,89660.0,0.00073267]
[1763569622128,0.16572,89661.0,89660.0,0.00073267]
[1763569622338,0.1672496,89661.0,89660.0,0.00073267]
[1763569623245,0.01978,89651.0,89650.0,0.00157392]
[1763569623434,0.38058,89651.0,89650.0,0.00157392]
[1763569623739,0.00989,89651.0,89650.0,0.04655392]
[1763569623936,0.10868,89651.0,89650.0,0.04655392]
[1763569624138,0.10868,89651.0,89650.0,0.04659392]
[1763569624334,0.11032559,89651.0,89650.0,0.04659392]
[1763569624929,0.00164559,89651.0,89650.0,0.04659392]
[1763569627937,0.02142559,89651.0,89650.0,0.02466392]
[1763569628137,0.02142559,89651.0,89650.0,0.00161392]
[1763569630944,0.01153559,89651.0,89650.0,0.04659392]
[1763569631244,0.00164559,89651.0,89650.0,0.04659392]
[1763569631442,0.00164559,89651.0,89650.0,0.40739392]
[1763569631838,0.10868,89658.0,89657.0,0.04498]
[1763569632034,0.00016728,89659.0,89658.0,0.04498]
[1763569632240,0.0580791,89705.0,89658.0,0.04498]
[1763569632241,0.10868,89675.0,89674.0,0.05785]
[1763569632436,0.3608,89687.0,89686.0,0.04498]
[1763569632640,0.3608,89699.0,89698.0,0.05785]
[1763569632841,0.34900532,89717.0,89716.0,0.04498]
[1763569633047,0.3608,89724.0,89723.0,0.04498]
[1763569633254,0.13109,89733.0,89726.0,0.01287]
[1763569633441,0.13109,89733.0,89712.0,0.01287]
[1763569633442,0.00016718,89732.0,89713.0,0.08015351]
[1763569633644,0.00219803,89720.0,89719.0,0.04498]
[1763569633945,0.00016718,89732.0,89731.0,0.04498]
[1763569634149,0.3608,89745.0,89744.0,0.05785]
[1763569634444,0.10868,89751.0,89744.0,0.05785]
[1763569634634,0.00219803,89750.0,89744.0,0.05785]
[1763569635036,0.00219803,89750.0,89744.0,0.04498]
[1763569635244,0.00219803,89750.0,89749.0,0.04498]
[1763569635646,0.0435,89745.0,89739.0,0.3608]
[1763569635838,0.0435,89745.0,89738.0,0.00016718]
[1763569636234,0.3608,89746.0,89738.0,0.00016718]
[1763569636542,0.02241,89739.0,89738.0,0.00016718]
[1763569636848,0.00219803,89740.0,89739.0,0.04498]
[1763569637052,0.002,89750.0,89749.0,0.04498]
[1763569637944,0.00016718,89756.0,89749.0,0.04498]
[1763569638246,0.00016718,89756.0,89755.0,0.04498]
[1763569638444,0.3608,89776.0,89765.0,0.04498]
[1763569638645,0.00219803,89770.0,89765.0,0.04498]
[1763569639042,0.0226885,89766.0,89751.0,0.3608]
[1763569639350,0.00219803,89760.0,89751.0,0.3608]
[1763569639542,0.00219803,89760.0,89759.0,0.04498]
[1763569640242,0.00219803,89760.0,89751.0,0.3608]
[1763569640643,0.00219803,89760.0,89750.0,0.1557512]
[1763569640644,0.0435,89751.0,89750.0,0.00016718]
[1763569640844,0.15218,89751.0,89750.0,0.00016718]
[1763569641245,0.0435,89751.0,89750.0,0.00016718]
[1763569641441,0.10864,89751.0,89750.0,0.02321718]
[1763569641642,0.15214,89751.0,89750.0,0.00016718]
[1763569641847,0.02241,89732.0,89731.0,0.3608]
[1763569642047,0.00219803,89730.0,89722.0,0.3608]
[1763569642343,0.02241,89723.0,89713.0,0.3608]
[1763569642549,0.00219803,89720.0,89713.0,0.3608]
[1763569643150,0.00219803,89720.0,89719.0,0.04498]
[1763569644542,0.00219803,89720.0,89713.0,0.3608]
[1763569645150,0.04478,89714.0,89713.0,0.3608]
[1763569645345,0.00219803,89710.0,89708.0,0.00016718]
[1763569645542,0.00219803,89720.0,89719.0,0.04339]
[1763569646244,0.00016718,89725.0,89724.0,0.04339]
[1763569646444,0.02129,89716.0,89715.0,0.3608]
[1763569646753,0.04366,89716.0,89715.0,0.3608]
[1763569646954,0.00219803,89720.0,89715.0,0.3608]
[1763569647145,0.00219803,89720.0,89710.0,0.15558402]
[1763569647344,0.00219803,89720.0,89708.0,0.00016718]
[1763569647550,0.3608,89715.0,89708.0,0.00016718]
[1763569648749,0.04366,89709.0,89708.0,0.00016718]
[1763569649138,0.04366,89698.0,89697.0,0.3608]
[1763569649349,0.00219803,89700.0,89697.0,0.3608]
[1763569650243,0.3608,89705.0,89704.0,0.04339]
[1763569650551,0.00219803,89700.0,89697.0,0.3608]
[1763569650757,0.02129,89698.0,89697.0,0.3608]
[1763569651449,0.04366,89698.0,89697.0,0.3608]
[1763569651655,0.04366,89691.0,89690.0,0.00016718]
[1763569651854,0.04566,89687.0,89686.0,0.00027875]
[1763569652147,0.40646,89687.0,89686.0,0.00027875]
[1763569653155,0.40746,89687.0,89686.0,0.00027875]
[1763569653656,0.04566,89678.0,89667.0,0.3608]
[1763569653856,0.15434,89678.0,89667.0,0.3608]
[1763569654051,0.00219803,89680.0,89667.0,0.3608]
[1763569654052,0.00219803,89680.0,89679.0,0.04267]
[1763569654254,0.00016718,89686.0,89685.0,0.04267]
[1763569654444,0.00016718,89686.0,89685.0,0.40347]
[1763569655746,0.3608,89707.0,89697.0,0.04267]
[1763569655953,0.00219803,89710.0,89706.0,0.02137]
[1763569656249,0.00219803,89710.0,89709.0,0.04267]
[1763569656842,0.00219803,89710.0,89709.0,0.05528]
[1763569657656,0.00219803,89710.0,89709.0,0.04267]
[1763569658156,0.00219803,89710.0,89701.0,0.00016718]
[1763569658157,0.38609803,89710.0,89701.0,0.00016718]
[1763569658744,0.38709803,89710.0,89701.0,0.00016718]
[1763569659455,0.36399803,89710.0,89701.0,0.00016718]
[1763569659660,0.3608,89708.0,89701.0,0.00016718]
[1763569659855,0.3608,89708.0,89707.0,0.04267]
[1763569660060,0.36399803,89710.0,89707.0,0.04267]
[1763569660460,0.36299803,89710.0,89707.0,0.04267]
[1763569660660,0.04566,89702.0,89701.0,0.00016718]
[1763569660848,0.40646,89702.0,89701.0,0.00016718]
[1763569661862,0.40746,89702.0,89701.0,0.00016718]
[1763569662157,0.40746,89702.0,89701.0,0.04283718]
[1763569662158,0.001,89702.0,89701.0,0.04283718]
[1763569662355,0.00016718,89718.0,89709.0,0.02137]
[1763569662556,0.00219803,89710.0,89709.0,0.04267]
[1763569662747,0.04785803,89710.0,89701.0,0.36096718]
[1763569663150,0.00219803,89710.0,89709.0,0.04267]
[1763569663351,0.00016718,89718.0,89717.0,0.04267]
[1763569663663,0.00016718,89718.0,89717.0,0.40347]
[1763569664460,0.00116718,89718.0,89717.0,0.40347]
[1763569665060,0.00016718,89718.0,89717.0,0.40347]
[1763569665464,0.00027863,89726.0,89725.0,0.04267]
[1763569666453,0.00027863,89726.0,89725.0,0.40347]
[1763569666854,0.00016718,89734.0,89733.0,0.04267]
[1763569667156,0.00016718,89734.0,89733.0,0.40347]
[1763569667661,0.00016718,89734.0,89733.0,0.04267]
[1763569667959,0.00219803,89730.0,89725.0,0.36096718]
[1763569668164,0.0231,89726.0,89725.0,0.00016718]